bitfinex-derivatives/quotes_BTCF0:USTF0_20250212
["timestamp","ask_amount","ask_price","bid_price","bid_amount"]
[1739366583299,0.3608,96698.0,96668.0,0.3608]
[1739366583507,0.5675841,96716.0,96692.0,0.3608]
[1739366583704,0.5682641,96716.0,96692.0,0.3608]
[1739366583902,0.00015414,96706.0,96692.0,0.3608]
[1739366584101,0.00015414,96706.0,96692.0,0.36071778]
[1739366584505,0.20695884,96706.0,96692.0,0.36071778]
[1739366584998,0.20695884,96706.0,96692.0,0.36171778]
[1739366585402,0.00015414,96706.0,96692.0,0.36171778]
[1739366585607,0.11,96700.0,96692.0,0.36271778]
[1739366585813,0.11,96700.0,96692.0,0.002]
[1739366585814,0.2068296,96694.0,96692.0,0.002]
[1739366586408,0.00068,96699.0,96693.0,0.3608]
[1739366586612,0.112,96700.0,96693.0,0.3608]
[1739366587115,0.003,96694.0,96693.0,0.3608]
[1739366587310,0.013,96694.0,96693.0,0.2358]
[1739366587507,0.01,96694.0,96693.0,0.2358]
[1739366588207,0.013,96694.0,96693.0,0.2358]
[1739366588411,0.2067896,96713.0,96693.0,0.2358]
[1739366588606,0.2067896,96713.0,96703.0,0.54576331]
[1739366588815,0.2067896,96713.0,96703.0,0.3608]
[1739366589018,0.3608,96704.0,96693.0,0.001]
[1739366589311,0.3608,96695.0,96693.0,0.001]
[1739366589513,0.3608,96695.0,96674.0,0.3608]
[1739366589721,0.2068892,96666.0,96652.0,0.00052]
[1739366589908,0.47784,96666.0,96631.0,0.3608]
[1739366590221,0.2069143,96655.0,96631.0,0.3608]
[1739366590414,0.0847,96665.0,96653.0,0.3608]
[1739366590611,0.2068982,96662.0,96653.0,0.3608]
[1739366590914,0.2069099,96657.0,96649.0,0.00015518]
[1739366591113,0.2069186,96653.0,96649.0,0.00015518]
[1739366592211,0.0847,96665.0,96650.0,0.3608]
[1739366592412,0.2069001,96661.0,96650.0,0.42076331]
[1739366592614,0.2069001,96661.0,96650.0,0.2358]
[1739366592912,0.005,96653.0,96650.0,0.2358]
[1739366593410,0.2069046,96659.0,96650.0,0.2358]
[1739366593903,0.006,96661.0,96650.0,0.2358]
[1739366594116,0.005,96661.0,96649.0,0.00015518]
[1739366594316,0.2069213,96651.0,96650.0,0.002]
[1739366595322,0.00068,96666.0,96664.0,0.206893]
[1739366595515,0.3608,96689.0,96668.0,0.2068849]
[1739366595715,0.2068422,96688.0,96668.0,0.2068849]
[1739366596117,0.3608,96689.0,96668.0,0.2068849]
[1739366596313,0.2068531,96683.0,96668.0,0.2068849]
[1739366597225,0.3608,96689.0,96668.0,0.2068849]
[1739366597226,0.00315518,96669.0,96668.0,0.2068849]
[1739366597810,0.00015518,96669.0,96668.0,0.2078849]
[1739366598216,0.00015518,96669.0,96668.0,0.001]
[1739366598409,0.00015518,96669.0,96668.0,0.004]
[1739366598615,0.2068962,96663.0,96656.0,0.2069097]
[1739366598812,0.00015518,96669.0,96649.0,0.00015518]
[1739366599021,0.206904,96660.0,96649.0,0.20707988]
[1739366599331,0.20703808,96669.0,96668.0,0.004]
[1739366599822,0.20703808,96669.0,96668.0,0.003]
[1739366600018,0.2069023,96660.0,96650.0,0.2069224]
[1739366600219,0.2069053,96659.0,96650.0,0.2069224]
[1739366600425,0.00015518,96669.0,96650.0,0.2069224]
[1739366600625,0.20803798,96669.0,96668.0,0.001]
[1739366601112,0.2069091,96657.0,96649.0,0.00015518]
[1739366601311,0.001,96660.0,96649.0,0.00015518]
[1739366601725,0.2069183,96653.0,96649.0,0.00015518]
[1739366602124,0.206922,96651.0,96649.0,0.00015518]
[1739366602325,0.2069277,96648.0,96647.0,0.23595518]
[1739366602827,0.2069355,96645.0,96643.0,0.18076725]
[1739366604027,0.3608,96652.0,96634.0,0.00015518]
[1739366604028,0.3608,96644.0,96634.0,0.00015518]
[1739366604524,0.2069556,96635.0,96634.0,0.00015518]
[1739366604729,0.5677556,96635.0,96634.0,0.00015518]
[1739366608430,0.206992,96618.0,96617.0,0.3608]
[1739366608624,0.3608,96645.0,96617.0,0.3608]
[1739366608825,0.3608,96645.0,96630.0,0.18496331]
[1739366609026,0.3608,96645.0,96642.0,0.2069396]
[1739366609425,0.3608,96645.0,96631.0,0.1343]
[1739366609622,0.5677349,96645.0,96642.0,0.2069399]
[1739366609826,0.2069374,96644.0,96642.0,0.2069399]
[1739366611626,0.006,96645.0,96643.0,0.5677368]
[1739366612032,0.00015518,96653.0,96644.0,0.0448]
[1739366612234,0.3608,96679.0,96652.0,0.3608]
[1739366612530,0.3608,96679.0,96667.0,0.3608]
[1739366612731,0.2068878,96667.0,96660.0,0.2069019]
[1739366612922,0.3608,96668.0,96653.0,0.0015519]
[1739366613122,0.2068996,96662.0,96654.0,0.2069131]
[1739366613330,0.3608,96668.0,96653.0,0.0015519]
[1739366613331,0.206908,96658.0,96653.0,0.0015519]
[1739366613529,0.2069149,96654.0,96653.0,0.0015519]
[1739366613932,0.2069149,96654.0,96653.0,0.0035519]
[1739366614528,0.2079149,96654.0,96653.0,0.0015519]
[1739366614729,0.001,96654.0,96648.0,0.00015518]
[1739366614930,0.5677256,96649.0,96648.0,0.00015518]
[1739366615133,0.2069406,96642.0,96641.0,0.30127875]
[1739366615438,0.2069511,96638.0,96633.0,0.30127875]
[1739366615735,0.5677577,96634.0,96633.0,0.30127875]
[1739366615932,0.5677577,96634.0,96633.0,5e-08]
[1739366616136,0.5677577,96634.0,96597.0,0.00155244]
[1739366616137,0.2070136,96608.0,96597.0,0.00155244]
[1739366616327,0.5678284,96601.0,96597.0,0.00155244]
[1739366616632,0.3608,96601.0,96566.0,0.3608]
[1739366616834,0.18496331,96610.0,96566.0,0.3608]
[1739366616835,0.3608,96582.0,96566.0,0.045]
[1739366617025,0.18496331,96580.0,96566.0,0.045]
[1739366617230,0.3608,96582.0,96566.0,0.045]
[1739366617425,0.3608,96582.0,96564.0,0.00155348]
[1739366617833,0.3608,96567.0,96564.0,0.00155348]
[1739366618135,0.2071035,96566.0,96564.0,0.00155348]
[1739366618439,0.3608,96566.0,96531.0,0.3608]
[1739366618643,0.3608,96545.0,96531.0,0.3608]
[1739366618942,0.3608,96554.0,96540.0,0.3608]
[1739366619326,0.2071191,96559.0,96549.0,0.3608]
[1739366619731,0.2071249,96556.0,96555.0,0.18416076]
[1739366619930,0.5679249,96556.0,96555.0,0.18416076]
[1739366620432,0.6608,96556.0,96548.0,0.24554768]
[1739366620734,0.2071399,96549.0,96548.0,0.24554768]
[1739366620933,0.2071399,96549.0,96544.0,0.00015536]
[1739366620934,0.2071485,96545.0,96544.0,0.00015536]
[1739366621638,0.2071818,96530.0,96521.0,0.3608]
[1739366622533,0.5679605,96540.0,96524.0,0.2071922]
[1739366622734,0.00015536,96539.0,96524.0,0.2071922]
[1739366623539,0.00015536,96539.0,96528.0,0.3678]
[1739366623940,0.001,96530.0,96528.0,0.3828]
[1739366624639,0.001,96530.0,96529.0,0.2071828]
[1739366624840,0.00115536,96539.0,96529.0,0.2071828]
[1739366625436,0.00115536,96539.0,96536.0,0.3608]
[1739366625736,0.2071213,96558.0,96536.0,0.3608]
[1739366625932,0.2071213,96558.0,96549.0,0.3608]
[1739366626133,0.3608,96566.0,96549.0,0.3608]
[1739366626330,0.2071267,96556.0,96542.0,0.207153]
[1739366626739,0.3608,96552.0,96539.0,0.00015536]
[1739366627041,0.2071443,96547.0,96539.0,0.00015536]
[1739366627434,0.2071443,96547.0,96542.0,0.003]
[1739366627639,0.2071493,96545.0,96542.0,0.003]
[1739366628344,0.2071519,96544.0,96542.0,0.003]
[1739366628943,0.2071519,96544.0,96542.0,0.011]
[1739366629145,0.001,96545.0,96542.0,0.011]
[1739366629537,0.001,96545.0,96542.0,0.008]
[1739366629746,0.001,96545.0,96544.0,0.3608]
[1739366630447,0.20727496,96559.0,96544.0,0.3608]
[1739366630639,0.00015536,96559.0,96544.0,0.3608]
[1739366630839,0.00015536,96559.0,96553.0,0.3608]
[1739366631248,0.2071282,96555.0,96553.0,0.3608]
[1739366631742,0.2071282,96555.0,96544.0,0.3678]
[1739366631949,0.2071282,96555.0,96546.0,0.2071448]
[1739366632842,0.2081282,96555.0,96544.0,0.3608]
[1739366633238,0.00015536,96559.0,96544.0,0.3608]
[1739366633454,0.00015536,96559.0,96557.0,0.2071217]
[1739366633748,0.00015536,96559.0,96558.0,0.1211]
[1739366634749,0.00315536,96559.0,96558.0,0.1211]
[1739366635252,0.01,96641.0,96574.0,0.2070852]
[1739366635253,0.2070755,96580.0,96574.0,0.2070852]
[1739366635447,0.2070755,96580.0,96574.0,0.5678852]
[1739366636451,0.00015536,96587.0,96574.0,0.3608]
[1739366636652,0.00015536,96587.0,96583.0,0.3608]
[1739366637055,0.3608,96586.0,96574.0,0.3608]
[1739366637256,0.3608,96586.0,96570.0,0.3608]
[1739366637459,0.2070978,96569.0,96567.0,0.00015536]
[1739366638251,0.3608,96578.0,96567.0,0.00015536]
[1739366638649,0.2070935,96571.0,96567.0,0.00015536]
[1739366638849,0.003,96569.0,96567.0,0.00015536]
[1739366639050,0.2070992,96568.0,96567.0,0.00015536]
[1739366639554,0.2071163,96560.0,96559.0,0.3608]
[1739366639949,0.2071163,96560.0,96541.0,0.0394]
[1739366640145,0.10548,96564.0,96548.0,0.2071403]
[1739366640358,0.3608,96551.0,96541.0,0.2465568]
[1739366640555,0.2071404,96549.0,96543.0,0.2071516]
[1739366640855,0.2071404,96549.0,96541.0,0.0394]
[1739366641157,0.00015536,96556.0,96541.0,0.0544]
[1739366641357,0.00015536,96556.0,96548.0,0.207142]
[1739366641551,0.2071323,96553.0,96548.0,0.207142]
[1739366642054,0.001,96549.0,96548.0,0.207142]
[1739366642460,0.001,96549.0,96548.0,0.567942]
[1739366642758,0.00015536,96556.0,96555.0,0.207127]
[1739366643350,0.00015536,96556.0,96548.0,0.3608]
[1739366643351,0.3608,96587.0,96550.0,0.3608]
[1739366643661,0.2070763,96579.0,96563.0,0.3608]
[1739366644053,0.2070763,96579.0,96576.0,0.2070813]
[1739366644252,0.2070614,96586.0,96576.0,0.2070813]
[1739366644454,0.2070667,96584.0,96571.0,0.3608]
[1739366644654,0.2070667,96584.0,96580.0,0.3608]
[1739366644864,0.36095536,96587.0,96585.0,0.2070621]
[1739366645060,0.00015536,96587.0,96585.0,0.2070621]
[1739366645956,0.207068,96583.0,96580.0,0.3608]
[1739366646160,0.2070798,96577.0,96576.0,0.001]
[1739366646753,0.3608,96582.0,96569.0,0.2070955]
[1739366646955,0.01615536,96587.0,96569.0,0.2070955]
[1739366647260,0.2070869,96574.0,96569.0,0.2070955]
[1739366647561,0.2070869,96574.0,96571.0,0.3185]
[1739366648358,0.2070892,96573.0,96571.0,0.3185]
[1739366648559,0.2070892,96573.0,96572.0,0.001]
[1739366649359,0.5678892,96573.0,96572.0,0.001]
[1739366649560,0.5688892,96573.0,96572.0,0.001]
[1739366650068,0.5688892,96573.0,96571.0,0.001]
[1739366651068,0.5758892,96573.0,96572.0,0.001]
[1739366651660,0.3688,96573.0,96572.0,0.001]
[1739366652170,0.5758884,96573.0,96572.0,0.001]
[1739366652364,0.5748884,96573.0,96572.0,0.001]
[1739366652571,0.5758884,96573.0,96572.0,0.001]
[1739366652771,0.9366884,96573.0,96572.0,0.001]
[1739366652968,0.9366884,96573.0,96544.0,0.3608]
[1739366652969,0.2071197,96559.0,96544.0,0.3608]
[1739366653272,0.207123,96557.0,96549.0,0.2071386]
[1739366653471,0.207123,96557.0,96550.0,0.2071364]
[1739366653767,0.3608,96565.0,96544.0,0.3608]
[1739366654073,0.2071434,96548.0,96544.0,0.3608]
[1739366654269,0.2071434,96548.0,96546.0,0.03905536]
[1739366654472,0.2071434,96548.0,96546.0,0.00015536]
[1739366655971,0.2071434,96548.0,96546.0,0.00415536]
[1739366656276,0.001,96548.0,96547.0,0.2071442]
[1739366656477,0.3608,96575.0,96547.0,0.3608]
[1739366656665,0.3608,96591.0,96564.0,0.3608]
[1739366656973,0.18554023,96600.0,96575.0,0.3608]
[1739366657174,0.2070598,96587.0,96575.0,0.3608]
[1739366657381,0.18554023,96590.0,96565.0,0.2071043]
[1739366657675,0.2070906,96572.0,96565.0,0.2071043]
[1739366657866,0.18554023,96580.0,96568.0,0.00015536]
[1739366658067,0.567897,96569.0,96568.0,0.00015536]
[1739366660073,0.568897,96569.0,96568.0,0.00015536]
[1739366660479,0.576897,96569.0,96568.0,0.00115536]
[1739366661081,0.65299763,96569.0,96568.0,0.00115536]
[1739366661876,0.44590063,96569.0,96549.0,0.0383]
[1739366662075,0.2071496,96545.0,96535.0,0.0371]
[1739366662276,0.2071528,96543.0,96535.0,0.0371]
[1739366662874,0.18554023,96552.0,96535.0,0.0371]
[1739366663072,0.18569559,96552.0,96535.0,0.0371]
[1739366663375,0.2071512,96544.0,96535.0,0.0371]
[1739366663576,0.2071512,96544.0,96542.0,0.3638]
[1739366664370,0.2071512,96544.0,96542.0,0.3748]
[1739366665270,0.2081512,96544.0,96542.0,0.3748]
[1739366665677,0.2071721,96534.0,96533.0,0.00015536]
[1739366666973,0.2091721,96534.0,96533.0,0.01915536]
[1739366667377,0.2091721,96534.0,96528.0,0.00155391]
[1739366667378,0.2071828,96529.0,96528.0,0.00155391]
[1739366667680,0.002,96534.0,96515.0,0.0383]
[1739366667681,0.2072107,96516.0,96515.0,0.0383]
[1739366667875,0.5680107,96516.0,96515.0,0.0383]
[1739366668878,0.3608,96516.0,96510.0,0.0401]
[1739366669180,0.20722,96512.0,96510.0,0.0401]
[1739366669382,0.2072279,96508.0,96507.0,0.01023953]
[1739366669580,0.2072279,96508.0,96506.0,0.00010367]
[1739366669786,0.3608,96507.0,96506.0,0.01027054]
[1739366670081,0.3608,96507.0,96506.0,0.00010367]
[1739366670981,0.3608,96507.0,96500.0,0.1]
[1739366671494,0.2022374,96504.0,96500.0,0.1]
[1739366671677,0.2022374,96504.0,96500.0,0.10991257]
[1739366671882,0.3638,96507.0,96500.0,0.1]
[1739366672075,0.003,96507.0,96506.0,0.2072322]
[1739366672274,0.003,96507.0,96501.0,0.4001]
[1739366672476,0.003,96507.0,96503.0,0.207237]
[1739366672980,0.002,96507.0,96505.0,0.2072325]
[1739366673582,0.36095536,96525.0,96519.0,0.2072027]
[1739366673776,0.36095536,96525.0,96511.0,0.3608]
[1739366673978,0.2071996,96522.0,96517.0,0.2072079]
[1739366675083,0.2071996,96522.0,96511.0,0.3608]
[1739366675084,0.2071996,96522.0,96518.0,0.207206]
[1739366675378,0.2071996,96522.0,96519.0,0.2072039]
[1739366675780,0.00215536,96525.0,96520.0,0.2072015]
[1739366676175,0.00215536,96525.0,96522.0,0.2071977]
[1739366676977,0.00015536,96525.0,96515.0,0.207212]
[1739366677283,0.00115536,96525.0,96523.0,0.2071947]
[1739366677582,0.2071462,96547.0,96525.0,0.0517976]
[1739366677779,0.2071462,96547.0,96542.0,0.2071535]
[1739366678170,0.2071462,96547.0,96538.0,0.3608]
[1739366678486,0.2071314,96553.0,96538.0,0.3608]
[1739366678789,0.3608,96558.0,96550.0,0.2071367]
[1739366678790,0.00015544,96552.0,96550.0,0.2071367]
[1739366678990,0.00015544,96552.0,96551.0,0.0396]
[1739366679282,0.00015544,96552.0,96551.0,0.0788]
[1739366679483,0.00015544,96552.0,96546.0,0.3608]
[1739366679780,0.207143,96548.0,96546.0,0.3608]
[1739366679988,0.2071535,96543.0,96534.0,0.0788]
[1739366680175,0.2071559,96542.0,96534.0,0.2463716]
[1739366680584,0.2071574,96541.0,96534.0,0.2463716]
[1739366680888,0.207142,96548.0,96546.0,0.001]
[1739366681385,0.2071721,96534.0,96530.0,0.00155395]
[1739366684195,0.2101721,96534.0,96533.0,0.00115544]
[1739366684688,0.003,96534.0,96533.0,0.00115544]
[1739366685379,0.003,96534.0,96533.0,0.03835544]
[1739366685887,0.18554023,96570.0,96533.0,0.03835544]
[1739366685888,0.00155426,96554.0,96533.0,0.03835544]
[1739366686080,0.00155426,96554.0,96551.0,0.2071356]
[1739366687286,0.00215544,96552.0,96551.0,0.0821356]
[1739366687480,0.00215544,96552.0,96550.0,0.0403]
[1739366687680,0.00215544,96552.0,96551.0,0.2071356]
[1739366687888,0.00015544,96552.0,96551.0,0.2071356]
[1739366688075,0.00115544,96552.0,96551.0,0.2071356]
[1739366689780,0.00115544,96552.0,96550.0,0.0403]
[1739366689975,0.2071356,96551.0,96550.0,0.0403]
[1739366691583,0.00115544,96552.0,96550.0,0.0403]
[1739366691789,0.001,96551.0,96550.0,0.0403]
[1739366694588,0.207095,96570.0,96550.0,0.4011]
[1739366694789,0.207095,96570.0,96567.0,0.2071007]
[1739366695088,0.2070806,96577.0,96566.0,0.3608]
[1739366695490,0.2070806,96577.0,96573.0,0.2070883]
[1739366695677,0.2070806,96577.0,96567.0,0.18554023]
[1739366695882,0.2070676,96583.0,96567.0,0.18554023]
[1739366696081,0.2070676,96583.0,96576.0,0.2070803]
[1739366696487,0.001,96570.0,96568.0,0.044]
[1739366696693,0.001,96570.0,96569.0,0.207097]
[1739366697186,0.2070858,96575.0,96568.0,0.044]
[1739366697386,0.019,96583.0,96568.0,0.044]
[1739366697688,0.2070891,96573.0,96571.0,0.2070912]
[1739366698086,0.2070915,96572.0,96568.0,0.044]
[1739366698785,0.007,96570.0,96568.0,0.2510989]
[1739366699386,0.011,96570.0,96568.0,0.2510989]
[1739366699789,0.007,96570.0,96568.0,0.2510989]
[1739366700101,0.011,96570.0,96568.0,0.2510989]
[1739366700288,0.004,96570.0,96568.0,0.2510989]
[1739366700985,0.00015535,96585.0,96568.0,0.046]
[1739366701184,0.00015535,96585.0,96584.0,0.5678648]
[1739366701894,0.20721805,96585.0,96584.0,0.3608]
[1739366702090,0.00015535,96585.0,96584.0,0.3608]
[1739366702288,0.00015535,96585.0,96584.0,0.2358]
[1739366707298,0.00015535,96585.0,96584.0,0.1108]
[1739366708405,0.20721805,96585.0,96576.0,0.49708]
[1739366709305,0.20721805,96585.0,96579.0,0.2070742]
[1739366709599,0.20821805,96585.0,96579.0,0.2070742]
[1739366710713,0.20821805,96585.0,96580.0,0.2070717]
[1739366711205,0.00115535,96585.0,96583.0,0.2070661]
[1739366712406,0.00115535,96585.0,96582.0,0.3608]
[1739366712996,0.00115535,96585.0,96583.0,0.2070661]
[1739366716311,0.00115535,96585.0,96582.0,0.3608]
[1739366716505,0.00115535,96585.0,96560.0,0.18554023]
[1739366716809,0.3608,96578.0,96564.0,0.0484]
[1739366717012,0.207098,96569.0,96561.0,0.2071137]
[1739366717803,0.207103,96567.0,96561.0,0.2071137]
[1739366718012,0.01110655,96585.0,96560.0,0.3608]
[1739366718201,0.3608,96580.0,96560.0,0.54634023]
[1739366718406,0.3608,96580.0,96562.0,0.2071109]
[1739366718605,0.2070967,96570.0,96562.0,0.2071109]
[1739366718907,0.3608,96580.0,96562.0,0.2071109]
[1739366719111,0.2070996,96568.0,96562.0,0.2071109]
[1739366719405,0.001,96569.0,96560.0,0.3608]
[1739366719406,0.001,96569.0,96563.0,0.2071092]
[1739366719608,0.2071034,96566.0,96563.0,0.2071092]
[1739366719803,0.2071034,96566.0,96565.0,0.00215535]
[1739366720409,0.2071034,96566.0,96565.0,0.00015535]
[1739366722205,0.2111034,96566.0,96565.0,0.00015535]
[1739366722612,0.2131034,96566.0,96565.0,0.00015535]
[1739366722810,0.006,96566.0,96550.0,0.00052]
[1739366723113,0.1028,96565.0,96550.0,0.18554023]
[1739366723307,0.005,96566.0,96557.0,0.2071215]
[1739366723308,0.2071182,96560.0,96557.0,0.2071215]
[1739366723508,0.2071182,96560.0,96552.0,0.3608]
[1739366723509,0.005,96566.0,96552.0,0.3608]
[1739366723702,0.2071126,96562.0,96552.0,0.3608]
[1739366723903,0.003,96566.0,96552.0,0.3608]
[1739366724105,0.2071152,96561.0,96552.0,0.3608]
[1739366724304,0.2071152,96561.0,96552.0,0.4127]
[1739366724606,0.2071313,96553.0,96552.0,0.6198325]
[1739366724808,0.2071313,96553.0,96552.0,0.2071325]
[1739366725906,0.2071313,96553.0,96552.0,0.2091325]
[1739366726713,0.2081313,96553.0,96552.0,0.2091325]
[1739366727210,0.001,96553.0,96552.0,0.2091325]
[1739366729120,0.001,96553.0,96552.0,0.2091335]
[1739366729313,0.00015535,96567.0,96552.0,0.6628]
[1739366729512,0.00015535,96567.0,96566.0,0.5679034]
[1739366729815,0.2070471,96593.0,96590.0,0.2070514]
[1739366730010,0.0514,96597.0,96591.0,0.2070481]
[1739366730211,0.0514,96597.0,96591.0,0.2070488]
[1739366730410,0.00223346,96600.0,96594.0,0.3608]
[1739366730713,0.00223346,96600.0,96598.0,0.2070348]
[1739366730714,0.00155346,96600.0,96598.0,0.2070348]
[1739366731017,0.2069746,96627.0,96614.0,0.2069986]
[1739366731208,0.2069746,96627.0,96617.0,0.12365893]
[1739366731408,0.2069746,96627.0,96618.0,0.206992]
[1739366731613,0.2069746,96627.0,96622.0,0.2069829]
[1739366732203,0.00015527,96634.0,96617.0,0.12365893]
[1739366732420,0.00015527,96634.0,96632.0,0.2069602]
[1739366733518,0.00115527,96634.0,96632.0,0.2069602]
[1739366733817,0.00415527,96634.0,96632.0,0.2069602]
[1739366735619,0.00915527,96634.0,96632.0,0.2069602]
[1739366736405,0.00915527,96634.0,96623.0,0.01002563]
[1739366736406,0.00915527,96634.0,96623.0,0.2069795]
[1739366736618,0.00915527,96634.0,96614.0,0.206999]
[1739366736619,0.3608,96627.0,96614.0,0.206999]
[1739366737010,0.3608,96627.0,96615.0,0.20715237]
[1739366737216,0.3608,96627.0,96615.0,0.00015527]
[1739366737413,0.206968,96630.0,96618.0,0.2069903]
[1739366737718,0.206968,96630.0,96620.0,0.18515774]
[1739366738121,0.1537,96633.0,96624.0,0.2069777]
[1739366738521,0.00915527,96634.0,96621.0,0.3608]
[1739366738908,0.001,96630.0,96621.0,0.3608]
[1739366739322,0.001,96630.0,96621.0,0.37097453]
[1739366739622,0.001,96630.0,96626.0,0.2069746]
[1739366739917,0.001,96630.0,96621.0,0.3608]
[1739366740112,0.001,96630.0,96628.0,0.2069696]
[1739366741222,0.00015527,96634.0,96628.0,0.2069696]
[1739366741416,0.00115527,96634.0,96628.0,0.2069696]
[1739366741817,0.001,96630.0,96628.0,0.2069696]
[1739366742321,0.00115527,96634.0,96628.0,0.2069696]
[1739366742521,0.003,96630.0,96628.0,0.2069696]
[1739366743118,0.005,96630.0,96628.0,0.2069696]
[1739366743317,0.003,96630.0,96628.0,0.2069696]
[1739366744928,0.001,96630.0,96628.0,0.2089696]
[1739366745329,0.001,96630.0,96628.0,0.002]
[1739366745529,0.3618,96630.0,96628.0,0.002]
[1739366745721,0.001,96630.0,96628.0,0.002]
[1739366746431,0.2069684,96629.0,96628.0,0.002]
[1739366746640,0.2558684,96629.0,96628.0,0.002]
[1739366746847,0.0489,96629.0,96615.0,0.00015527]
[1739366747039,0.3608,96616.0,96615.0,0.00015527]
[1739366748544,0.5677962,96616.0,96615.0,0.00015527]
[1739366749445,0.5677962,96616.0,96591.0,0.06544044]
[1739366749446,0.3608,96616.0,96595.0,0.2070411]
[1739366749648,0.3608,96597.0,96595.0,0.2070411]
[1739366749848,0.3608,96607.0,96595.0,0.2070411]
[1739366750247,0.3608,96597.0,96595.0,0.2070411]
[1739366750949,0.3618,96597.0,96595.0,0.2070411]
[1739366751152,0.001,96597.0,96595.0,0.2070411]
[1739366751954,0.3618,96597.0,96595.0,0.2070411]
[1739366752151,0.3638,96597.0,96595.0,0.2070411]
[1739366753150,0.3638,96597.0,96586.0,0.00015527]
[1739366753151,0.3638,96597.0,96587.0,0.2070583]
[1739366753351,0.2070465,96593.0,96587.0,0.2070583]
[1739366755149,0.2090465,96593.0,96587.0,0.2070583]
[1739366755348,0.2070584,96587.0,96586.0,0.00015527]
[1739366756553,0.003,96593.0,96586.0,0.00015527]
[1739366756752,0.002,96593.0,96586.0,0.00015527]
[1739366757058,0.002,96593.0,96591.0,0.2070491]
[1739366757958,0.002,96593.0,96586.0,0.00015527]
[1739366757959,0.56797417,96606.0,96602.0,0.2070252]
[1739366759460,0.56797417,96606.0,96604.0,0.2070219]
[1739366760253,0.36095527,96606.0,96592.0,0.3608]
[1739366760652,0.36095527,96606.0,96590.0,0.2070499]
[1739366760653,0.2070456,96593.0,96590.0,0.2070499]
[1739366760959,0.2070456,96593.0,96586.0,0.00015527]
[1739366761160,0.2070485,96592.0,96586.0,0.00015527]
[1739366761861,0.2070485,96592.0,96586.0,0.20721417]
[1739366762452,0.2080485,96592.0,96586.0,0.20721417]
[1739366762659,0.2100485,96592.0,96586.0,0.20721417]
[1739366763162,0.2100485,96592.0,96586.0,0.00015527]
[1739366763163,0.003,96592.0,96586.0,0.00015527]
[1739366763346,0.003,96592.0,96586.0,0.36095527]
[1739366764450,0.003,96592.0,96590.0,0.2070512]
[1739366764660,0.2070542,96589.0,96586.0,0.00015527]
[1739366764864,0.2070581,96588.0,96586.0,0.00015527]
[1739366765162,0.3608,96590.0,96567.0,0.36132]
[1739366765163,0.207082,96576.0,96575.0,0.00155302]
[1739366765357,0.567882,96576.0,96575.0,0.00155302]
[1739366767659,0.3618,96576.0,96566.0,0.00015527]
[1739366767853,0.3608,96567.0,96566.0,0.00015527]
[1739366769053,0.3618,96567.0,96566.0,0.00015527]
[1739366769860,0.4146,96567.0,96566.0,0.00015527]
[1739366770859,0.4156,96567.0,96566.0,0.00015527]
[1739366772262,0.3628,96567.0,96566.0,0.00015527]
[1739366772468,0.002,96567.0,96566.0,0.00015527]
[1739366772864,0.3608,96586.0,96566.0,0.05595527]
[1739366773070,0.36148,96586.0,96583.0,0.2070651]
[1739366773369,0.3608,96586.0,96584.0,0.0564]
[1739366773566,0.3608,96586.0,96566.0,0.00015527]
[1739366773770,0.3608,96586.0,96570.0,0.12359619]
[1739366774166,0.00115527,96585.0,96566.0,0.00015527]
[1739366774667,0.00215527,96585.0,96576.0,0.20708]
[1739366775769,0.00215527,96585.0,96583.0,0.2070668]
[1739366776262,0.00215527,96585.0,96584.0,0.0569]
[1739366777470,0.00315527,96585.0,96584.0,0.0579]
[1739366779870,0.00155311,96606.0,96584.0,0.0579]
[1739366780180,0.00155311,96606.0,96605.0,0.2070198]
[1739366781171,0.00355311,96606.0,96605.0,0.2070198]
[1739366782370,0.00355311,96606.0,96598.0,0.0548]
[1739366782565,0.00355311,96606.0,96605.0,0.2070198]
[1739366782777,0.00155311,96606.0,96605.0,0.2070198]
[1739366782980,0.00155311,96606.0,96605.0,0.2090198]
[1739366782981,0.00255311,96606.0,96605.0,0.2090198]
[1739366783478,0.001,96606.0,96605.0,0.2090198]
[1739366783981,0.001,96606.0,96605.0,0.5698198]
[1739366787282,0.00015527,96615.0,96614.0,0.2070005]
[1739366787475,0.00015527,96615.0,96614.0,0.3608]
[1739366787789,0.3608,96631.0,96629.0,0.2069678]
[1739366788680,0.0556,96645.0,96637.0,0.2069513]
[1739366789977,0.00255264,96638.0,96637.0,0.2069513]
[1739366791181,0.00455264,96638.0,96637.0,0.2069513]
[1739366791382,0.00455264,96638.0,96630.0,0.3608]
[1739366792482,0.00555264,96638.0,96630.0,0.3608]
[1739366792685,0.004,96638.0,96630.0,0.3608]
[1739366793278,0.003,96638.0,96630.0,0.3648]
[1739366793483,0.003,96638.0,96631.0,0.2069639]
[1739366793779,0.001,96638.0,96631.0,0.2069639]
[1739366795185,0.001,96638.0,96630.0,0.3648]
[1739366795375,0.001,96638.0,96631.0,0.2069642]
[1739366795877,0.0556,96645.0,96631.0,0.2099642]
[1739366796080,0.0556,96645.0,96633.0,0.2069593]
[1739366797089,0.0556,96645.0,96635.0,0.39222581]
[1739366797591,0.0556,96645.0,96635.0,0.26722581]
[1739366798087,0.0556,96645.0,96644.0,0.3608]
[1739366798288,0.00015527,96647.0,96644.0,0.3608]
[1739366798792,0.001,96645.0,96644.0,0.5677363]
[1739366799889,0.001,96645.0,96644.0,0.5687363]
[1739366800491,0.004,96645.0,96644.0,0.5687363]
[1739366800695,0.011,96645.0,96644.0,0.001]
[1739366801491,0.011,96645.0,96630.0,0.3608]
[1739366801694,0.3608,96638.0,96630.0,0.3608]
[1739366801997,0.5677504,96638.0,96630.0,0.3608]
[1739366802999,0.2069522,96637.0,96630.0,0.3648]
[1739366803603,0.2069364,96644.0,96630.0,0.3648]
[1739366803806,0.2069364,96644.0,96630.0,0.3658]
[1739366804103,0.2069407,96642.0,96637.0,0.2069497]
[1739366804300,0.001,96645.0,96630.0,0.48928693]
[1739366804600,0.001,96645.0,96644.0,0.2069363]
[1739366806002,0.00015527,96647.0,96639.0,0.12292697]
[1739366806200,0.00015527,96647.0,96646.0,0.567732]
[1739366808008,0.00915527,96647.0,96646.0,0.568732]
[1739366808308,0.01315527,96647.0,96646.0,0.568732]